[Event "CCT Julius Baer-D3 2024"]
[Site "Online"]
[Date "2024.09.28"]
[Round "53"]
[White "Kamsky, Gata"]
[Black "Gelfand, Boris"]
[Result "1-0"]
[ECO "D00"]
[WhiteElo "2609"]
[BlackElo "2658"]
[Annotator "TA"]
[PlyCount "55"]
[EventDate "2024.09.25"]
[EventType "swiss"]
[EventCountry "NET"]
[SourceTitle "playchess.com"]
[Source "ChessBase"]
[SourceQuality "1"]
[TimeControl "600+2"]

{[%evp 9,55,0,0,0,0,0,0,0,0,0,-9,-25,-17,-42,93,73,79,81,301,77,245,197,195,197,332,330,388,278,368,325,429,423,387,171,537,529,535,547,591,572,654,585,744,729,823,828,953,938]} 1. d4 {[%emt 0:00:02]} Nf6 {[%emt 0:00:04]} 2. Bf4 {[%emt 0:00:01]} d5 {[%emt 0:00:01]} 3. e3 {[%emt 0:00:01]} c5 {[%emt 0:00:03]} 4. c3 {[%emt 0:00:01]} Nc6 {[%emt 0:00:01]} 5. Nd2 {[%emt 0:00:01]} Bf5 {[%emt 0:00:01]} 6. Ngf3 {[%emt 0:00:02]} Qb6 {[%emt 0:00:03]} 7. dxc5 {[%emt 0:00:08]} Qxb2 {[%emt 0:00:03]} 8. Nd4 {[%emt 0:00:03] The position is equal.} Ne4 {[%emt 0:00:17] Threatens to win with ...Nxd2.} 9. Nxe4 {[%emt 0:04:39]} Bxe4 {[%emt 0:00:02]} 10. Bb5 {[%emt 0:00:07] Hoping for 0-0.} Qxc3+ {[%emt 0:01:32]} 11. Ke2 {[%emt 0:01:13] And now Qb3 would win.} Rc8 {[%emt 0:02:00] [#]} (11... Qxc5 $2 12. Qa4 e5 (12... Bxg2 $2 13. Rhc1 $18) 13. Rac1 $18) (11... Qb2+ $1 $15 {stays ahead.} 12. Qd2 Qxd2+ 13. Kxd2 Rc8 (13... Bxg2 $2 14. Nxc6 e5 15. Nxe5+ Ke7 16. Rhg1 $18)) 12. Qb3 $1 $36 {[%emt 0:00:21][%mdl 2048] White is in control. Black is on the road to losing.} Qxb3 {[%emt 0:01:02]} (12... Qxc5 $2 13. Rhc1 Qb6 14. f3 $18) 13. axb3 {[%emt 0:00:03][%cal Of2f3] Black must now prevent f3!} g5 $2 {[%emt 0:00:10] [#]} (13... Bxg2 $2 14. Rhg1 Bh3 15. Rxa7 $18) (13... a6 $16 14. Bxc6+ bxc6) 14. Bxg5 $2 {[%emt 0:00:47]} (14. Rxa7 $1 $18 e5 (14... gxf4 $2 {loses.} 15. Rxb7 Bg7 16. Nxc6 $18) 15. Bxe5 (15. Bxg5 exd4 16. exd4 Bg7 $17) 15... Bxc5 16. Rxb7 Bxd4 17. Bxh8 (17. Bxd4 O-O $16) 17... Bxh8 18. Rc1 (18. Bxc6+ Rxc6 19. Rb8+ Ke7 $15)) 14... f6 $2 {[%emt 0:01:19]} (14... Rg8 $16 15. Bf4 Rxg2) 15. Bh4 {[%emt 0:00:35][%cal Of2f3] f3! would now be deadly.} Bxg2 {[%emt 0:02:03]} 16. Rhg1 {[%emt 0:00:05]} Bh3 {[%emt 0:00:01]} (16... Rg8 $142) 17. Rxa7 $18 {[%emt 0:00:08]} Kf7 {[%emt 0:00:05]} 18. Rxb7 {[%emt 0:00:13]} Nd8 {[%emt 0:00:02] [#]} 19. c6 {[%emt 0:00:19][%cal Bc5c6,Bc6b7][%mdl 32]} Nxb7 {[%emt 0:00:28]} (19... Rg8 20. Rxg8) 20. cxb7 {[%emt 0:00:01]} Rb8 {[%emt 0:00:00]} 21. Nc6 {[%emt 0:00:01]} (21. Bc6 $142) 21... Bh6 $2 {[%emt 0:00:02]} (21... Bd7 {is more resistant.}) 22. Nxb8 {[%emt 0:00:05] White is clearly winning.} Rxb8 {[%emt 0:00:01]} 23. Ba6 {[%emt 0:00:04]} d4 {[%emt 0:00:24]} 24. Rc1 {[%emt 0:00:05]} dxe3 {[%emt 0:00:14]} 25. fxe3 {[%emt 0:00:07]} Bg2 {[%emt 0:00:03]} 26. Rc7 {[%emt 0:00:17]} Kg6 {[%emt 0:00:11]} 27. Rxe7 {[%emt 0:00:16]} Bf8 {[%emt 0:00:01]} 28. Bg3 {[%emt 0:00:02] Weighted Error Value: White=0.37/Black=0.91.  Loses game:     	---       	Black=2      Missed win:     	White=1     	---        Mistake:       	White=1     	Black=3      Inaccurate:     	---       	Black=2      OK:         	White=5     	Black=7      Best:        	White=2     	---        Strong:       	White=1     	---} 1-0

[Event "CCT Julius Baer-D3 2024"]
[Site "Online"]
[Date "2024.09.28"]
[Round "53"]
[White "Bosiocic, Marin"]
[Black "Makarian, Rudik"]
[Result "0-1"]
[ECO "A05"]
[WhiteElo "2555"]
[BlackElo "2550"]
[Annotator "RC"]
[PlyCount "128"]
[EventDate "2024.09.25"]
[EventType "swiss"]
[EventCountry "NET"]
[SourceTitle "playchess.com"]
[Source "ChessBase"]
[SourceQuality "1"]
[TimeControl "600+2"]

1. Nf3 {[%emt 0:00:02]} Nf6 {[%emt 0:00:03]} 2. g3 {[%emt 0:00:02]} b5 {[%emt 0:00:02]} 3. d3 {[%emt 0:00:03]} Bb7 {[%emt 0:00:03]} 4. e4 {[%emt 0:00:01]} e6 {[%emt 0:00:01]} 5. Bg2 {[%emt 0:00:07]} d5 {[%emt 0:00:01]} 6. exd5 {[%emt 0:00:10]} Nxd5 {[%emt 0:00:00]} 7. O-O {[%emt 0:00:06]} b4 {[%emt 0:00:39]} 8. c4 {[%emt 0:00:11]} Nf6 {[%emt 0:00:09]} 9. a3 {[%emt 0:00:08]} a5 {[%emt 0:00:05]} 10. axb4 {[%emt 0:00:20]} axb4 {[%emt 0:00:00]} 11. Rxa8 {[%emt 0:00:22]} Bxa8 {[%emt 0:00:00]} 12. Ne5 {[%emt 0:00:31]} Bxg2 {[%emt 0:00:03]} 13. Kxg2 {[%emt 0:00:01]} Bd6 {[%emt 0:00:01]} 14. Qa4+ {[%emt 0:00:06]} Ke7 {[%emt 0:00:04]} 15. d4 {[%emt 0:00:15]} c5 {[%emt 0:00:50]} 16. Nf3 {[%emt 0:00:27]} Qd7 {[%emt 0:00:07]} 17. Qd1 {[%emt 0:00:31]} Qb7 {[%emt 0:00:11]} 18. d5 {[%emt 0:00:23]} exd5 {[%emt 0:00:08]} 19. Re1+ {[%emt 0:00:01]} Kf8 {[%emt 0:00:03]} 20. cxd5 {[%emt 0:00:02]} Nbd7 {[%emt 0:00:08]} 21. Nbd2 {[%emt 0:00:22]} Qxd5 {[%emt 0:00:17]} 22. Nc4 {[%emt 0:00:04]} Qxd1 {[%emt 0:00:07]} 23. Rxd1 {[%emt 0:00:02]} Bc7 {[%emt 0:00:31]} 24. Nh4 {[%emt 0:00:40]} g6 {[%emt 0:00:34]} 25. Bh6+ {[%emt 0:00:02]} Ke7 {[%emt 0:00:03]} 26. Nf3 {[%emt 0:00:09]} Ng4 {[%emt 0:00:55]} 27. Bc1 {[%emt 0:01:17]} f6 {[%emt 0:00:06]} 28. Bf4 {[%emt 0:01:31]} Nge5 {[%emt 0:00:51]} 29. Bxe5 {[%emt 0:00:20]} Bxe5 {[%emt 0:00:44]} 30. Nfxe5 {[%emt 0:00:21]} Nxe5 {[%emt 0:00:14]} 31. Nxe5 {[%emt 0:00:13]} fxe5 {[%emt 0:00:00]} 32. Rd5 {[%emt 0:00:30]} Rc8 {[%emt 0:00:22]} 33. Kf3 {[%emt 0:00:06]} c4 {[%emt 0:00:22]} 34. Ke4 {[%emt 0:00:44]} c3 {[%emt 0:01:00]} 35. bxc3 {[%emt 0:00:01]} bxc3 {[%emt 0:00:01]} 36. Rd1 {[%emt 0:00:03]} Ke6 {[%emt 0:01:05]} 37. Rc1 {[%emt 0:00:06]} c2 {[%emt 0:01:06]} 38. Kd3 {[%emt 0:00:12]} Kd5 {[%emt 0:00:04]} 39. f3 {[%emt 0:00:04]} e4+ {[%emt 0:00:02]} 40. fxe4+ {[%emt 0:00:08]} Ke5 {[%emt 0:00:00]} 41. Ke3 {[%emt 0:00:02]} g5 {[%emt 0:00:08]} 42. Kd3 {[%emt 0:00:22]} Rc7 {[%emt 0:00:06]} 43. Ke3 {[%emt 0:00:02]} Rc6 {[%emt 0:00:01]} 44. Kd3 {[%emt 0:00:01]} Rc5 {[%emt 0:00:02]} 45. Ke3 {[%emt 0:00:03]} h6 {[%emt 0:00:01]} 46. Kd3 {[%emt 0:00:01]} Rc7 {[%emt 0:00:00]} 47. Ke3 {[%emt 0:00:01]} Rc8 {[%emt 0:00:01]} 48. Kd3 {[%emt 0:00:01]} h5 {[%emt 0:00:05]} 49. Ke3 {[%emt 0:00:02]} Rc7 {[%emt 0:00:08]} 50. Kd3 {[%emt 0:00:01]} Rc6 {[%emt 0:00:00]} 51. Ke3 {[%emt 0:00:01]} Rc5 {[%emt 0:00:01]} 52. Kd3 {[%emt 0:00:00]} g4 {[%emt 0:00:05]} 53. Ke3 {[%emt 0:00:02]} Rc4 {[%emt 0:00:05]} 54. Kd3 {[%emt 0:00:01]} Rd4+ {[%emt 0:00:02]} 55. Kc3 {[%emt 0:00:01]} Rd8 {[%emt 0:00:01]} 56. Rxc2 {[%emt 0:00:22]} Rc8+ {[%emt 0:00:01]} 57. Kd2 {[%emt 0:00:03]} Rxc2+ {[%emt 0:00:00]} 58. Kxc2 {[%emt 0:00:01]} Kxe4 {[%emt 0:00:00]} 59. Kc3 {[%emt 0:00:01]} Kf3 {[%emt 0:00:01]} 60. Kd4 {[%emt 0:00:01]} Kg2 {[%emt 0:00:00]} 61. Ke5 {[%emt 0:00:01]} Kxh2 {[%emt 0:00:01]} 62. Kf4 {[%emt 0:00:00]} Kh3 {[%emt 0:00:00]} 63. Kg5 {[%emt 0:00:01]} Kxg3 {[%emt 0:00:00]} 64. Kxh5 {[%emt 0:00:01]} Kf3 {[%emt 0:00:01]} 0-1

[Event "CCT Julius Baer-D3 2024"]
[Site "Online"]
[Date "2024.09.28"]
[Round "53"]
[White "Makarian, Rudik"]
[Black "Bosiocic, Marin"]
[Result "1-0"]
[ECO "D37"]
[WhiteElo "2550"]
[BlackElo "2555"]
[Annotator "TA"]
[PlyCount "129"]
[EventDate "2024.09.25"]
[EventType "swiss"]
[EventCountry "NET"]
[SourceTitle "playchess.com"]
[Source "ChessBase"]
[SourceQuality "1"]
[TimeControl "600+2"]

{[%evp 51,129,-100,-100,-98,-95,-99,-84,-89,-11,-14,0,0,0,0,0,0,2,-4,4,-22,0,-31,0,0,12,0,0,0,0,0,44,-15,101,91,97,0,84,0,0,0,4,0,37,16,39,29,43,30,60,0,91,92,320,317,296,260,244,245,203,203,29966,12846,6070,362,2400,1334,5210,4222,5114,2502,2502,2960,2528,3319,29985,29986,29986,29987,29987,29988]} 1. d4 {[%emt 0:00:04]} Nf6 {[%emt 0:02:47]} 2. c4 {[%emt 0:00:03]} e6 {[%emt 0:00:03]} 3. Nf3 {[%emt 0:00:03]} d5 {[%emt 0:00:02]} 4. Nc3 {[%emt 0:00:06]} a6 {[%emt 0:00:03]} 5. cxd5 {[%emt 0:00:05]} exd5 {[%emt 0:00:03]} 6. Bg5 {[%emt 0:00:03]} Be6 {[%emt 0:00:03]} 7. e3 {[%emt 0:00:03]} Nbd7 {[%emt 0:00:03]} 8. Bf4 {[%emt 0:00:02]} Nh5 {[%emt 0:00:10]} 9. Bd3 {[%emt 0:00:04]} c6 {[%emt 0:00:09]} 10. h3 {[%emt 0:00:04]} Nxf4 {[%emt 0:00:07]} 11. exf4 {[%emt 0:00:02]} g6 {[%emt 0:00:06]} 12. Qd2 {[%emt 0:00:09]} Bg7 {[%emt 0:00:09]} 13. O-O {[%emt 0:00:10]} O-O {[%emt 0:00:05]} 14. Rae1 {[%emt 0:00:06]} Nb6 {[%emt 0:00:08]} 15. Ne5 {[%emt 0:00:14]} Nc8 {[%emt 0:00:07]} 16. Kh2 {[%emt 0:00:08]} Nd6 {[%emt 0:00:08]} 17. g4 {[%emt 0:00:16]} Re8 {[%emt 0:00:05]} 18. Rg1 {[%emt 0:01:31]} f6 {[%emt 0:00:03]} 19. Nf3 {[%emt 0:00:06]} Bf7 {[%emt 0:00:04]} 20. Kg3 {[%emt 0:00:06]} Rxe1 {[%emt 0:00:04]} 21. Rxe1 {[%emt 0:00:02]} Qd7 {[%emt 0:00:07]} 22. Re3 {[%emt 0:00:06]} Qc7 {[%emt 0:00:14]} 23. Re2 {[%emt 0:00:12]} Re8 {[%emt 0:00:06]} 24. b3 {[%emt 0:00:05]} Rxe2 {[%emt 0:00:06]} 25. Qxe2 {[%emt 0:00:05]} Ne8 {[%emt 0:00:05]} 26. h4 {[%emt 0:00:07]} Bf8 {[%emt 0:00:04]} 27. Qe3 {[%emt 0:00:16]} Bd6 {[%emt 0:00:04]} 28. Ne2 {[%emt 0:00:03]} Ng7 {[%emt 0:00:04]} 29. Kg2 {[%emt 0:00:05]} Ne6 {[%emt 0:00:05]} (29... Be6 $17 30. g5 Qf7) 30. f5 $11 {[%emt 0:00:03]} Nf4+ {[%emt 0:00:05]} 31. Nxf4 {[%emt 0:00:03]} Bxf4 {[%emt 0:00:04]} 32. Qe2 {[%emt 0:00:04]} Qd8 {[%emt 0:00:10]} 33. Ng1 {[%emt 0:00:30]} Kg7 {[%emt 0:00:13]} 34. Qf3 {[%emt 0:00:06]} Bd6 {[%emt 0:00:06]} 35. Ne2 {[%emt 0:00:05]} Qe7 {[%emt 0:00:10]} 36. a4 {[%emt 0:00:07]} Qe8 {[%emt 0:00:06]} 37. Ng1 {[%emt 0:00:11]} h5 {[%emt 0:00:15]} 38. g5 {[%emt 0:00:34]} Qe7 {[%emt 0:00:13]} 39. Nh3 {[%emt 0:00:06]} Bc7 {[%emt 0:00:21]} 40. Kf1 {[%emt 0:01:05]} Be8 {[%emt 0:00:04]} 41. Qg2 {[%emt 0:00:33]} (41. Nf4 $14 Bxf4 42. Qxf4) 41... Ba5 {[%emt 0:00:09]} (41... Bd7 $11) 42. gxf6+ $16 {[%emt 0:00:31]} Qxf6 {[%emt 0:00:03]} 43. Nf4 {[%emt 0:00:02]} (43. Qg3 $1 $16 {Strongly threatening Nf4.} Qxd4 44. Nf4) 43... Kh6 {[%emt 0:00:13] [#]} (43... Qxd4 $2 44. Ne6+ (44. Nxg6 $2 Qxd3+ 45. Kg1 Qb1+ 46. Kh2 Qxf5 $19) 44... Kf7 45. Nxd4 $18) (43... Qxh4 $11 {remains equal.} 44. Qf3 g5 45. f6+ Kf8 46. Ne6+ Kf7) 44. Nxg6 {[%emt 0:00:03]} (44. Qg3 $1 $16 {[%cal Rg3e3] Hoping for Qe3.} Bd2 (44... gxf5 45. Qe3 $16) 45. Ke2 (45. Nxg6 Bxg6 46. fxg6 Qf4 $14)) 44... Bxg6 $11 {[%emt 0:00:04]} 45. fxg6 {[%emt 0:00:03]} Bd8 {[%emt 0:00:29]} 46. Qg3 {[%emt 0:00:44]} Kg7 {[%emt 0:00:04]} 47. Qb8 {[%emt 0:00:13]} Qe7 {[%emt 0:00:07]} 48. Kg2 {[%emt 0:00:23]} Qxh4 {[%emt 0:00:05]} 49. Qxb7+ {[%emt 0:00:06]} Be7 {[%emt 0:00:04]} 50. Kf1 {[%emt 0:00:09]} (50. Qxc6 Qg4+ 51. Kh2 Qf3 $11 (51... Qxd4 52. Qc2 $11)) ({Better is} 50. Qd7 $14) 50... Qf6 {[%emt 0:00:07]} (50... Qh3+ $11 {keeps the balance.} 51. Ke2 Qe6+ 52. Kd1 (52. Kd2 Qf6 $11) 52... Kh6) 51. Qd7 $16 {[%emt 0:00:10]} ({Much weaker is} 51. Qxa6 $6 Qf3 $11 (51... Qxd4 52. Bc2 $16)) 51... a5 $2 {[%emt 0:00:07] [#]} (51... Qh4 $16 {is a better defense.} 52. Ke1 (52. Qxc6 Qh3+ 53. Ke2 Qg4+ 54. f3 Qg2+ 55. Ke3 Qg1+ 56. Ke2 Qg2+ 57. Ke3 Qg5+ 58. f4 Qg3+ 59. Ke2 Qg4+ 60. Ke3 Qg3+ 61. Ke2 Qg4+ 62. Ke3 Qg3+ $11) 52... Kh6) 52. b4 $1 $18 {[%emt 0:00:08]} Kh6 {[%emt 0:00:19]} 53. bxa5 {[%emt 0:00:07]} Qxd4 {[%emt 0:00:28]} 54. Qf5 {[%emt 0:00:16]} Bc5 {[%emt 0:00:22]} 55. a6 {[%emt 0:00:10]} Qa1+ $2 {[%emt 0:00:10]} (55... Qxa4 $18 56. Kg2 Qg4+ 57. Qxg4 hxg4) 56. Kg2 {[%emt 0:00:04]} Qd4 {[%emt 0:00:05]} 57. Kg3 $2 {[%emt 0:00:05]} (57. a7 Bxa7 58. Qf8+ Kg5 59. f4+ Qxf4 60. Qxf4+ Kxf4 61. g7) 57... Bd6+ $2 {[%emt 0:00:04]} (57... Kg7 58. a7 Bd6+ 59. Kg2 Qxa7 60. Qxh5 Qe7) 58. Kh3 $18 {[%emt 0:00:03]} Bc5 {[%emt 0:00:04]} 59. Be2 {[%emt 0:00:07]} Qe4 {[%emt 0:00:35]} 60. Qxh5+ {[%emt 0:00:09]} Kg7 {[%emt 0:00:03]} 61. Qh7+ {[%emt 0:00:02]} Kf6 {[%emt 0:00:03]} 62. Qf7+ {[%emt 0:00:03]} Kg5 {[%emt 0:00:05]} 63. f4+ $1 {[%emt 0:00:06]} Qxf4 {[%emt 0:00:10]} 64. Qxf4+ {[%emt 0:00:04]} Kxf4 {[%emt 0:00:03]} 65. g7 {[%emt 0:00:04]} 1-0